bitfinex/quotes_SOLUSD_20240703
["timestamp","ask_amount","ask_price","bid_price","bid_amount"]
[1720030521683,13.37,142.08,142.05,7.3794]
[1720030521891,13.37,142.09,142.07,7.0387]
[1720030523088,8.44671668,142.11,142.07,7.0387]
[1720030523387,13.37,142.09,142.06,24.637]
[1720030523890,13.37,142.09,142.07,7.2087]
[1720030525301,1.40961668,142.12,142.08,7.0379]
[1720030525502,1.40961668,142.15,142.09,7.0377]
[1720030525675,16.7936404,142.16,142.08,24.6336]
[1720030525676,13.37,142.11,142.08,24.6336]
[1720030526191,13.37,142.09,142.07,0.17]
[1720030526372,13.37,142.09,142.07,7.0387]
[1720030526567,14.77961668,142.1,142.08,0.17]
[1720030527271,14.77961668,142.1,142.07,7.0387]
[1720030527565,13.37,142.08,142.06,7.039]
[1720030528977,7.0368,142.11,142.07,7.0386]
[1720030529181,13.37,142.09,142.07,7.0386]
[1720030529369,13.37,142.08,142.06,7.039]
[1720030530688,1.40961668,142.12,142.05,17.9388]
[1720030530891,13.37,142.09,142.07,7.0384]
[1720030531467,13.37,142.09,142.07,24.6352]
[1720030532401,13.37,142.09,142.08,7.0382]
[1720030532580,7.0359,142.13,142.09,7.0376]
[1720030533195,13.37,142.1,142.09,7.0376]
[1720030533391,7.0359,142.13,142.09,7.0376]
[1720030533578,13.37,142.11,142.09,7.0376]
[1720030534180,1.40961668,142.14,142.11,7.0368]
[1720030534482,1.40961668,142.14,142.1,24.629]
[1720030534685,13.37,142.13,142.1,24.629]
[1720030534890,13.37,142.12,142.1,24.629]
[1720030536187,1.40961668,142.14,142.11,7.0366]
[1720030536386,14.77961668,142.13,142.1,24.629]
[1720030536596,13.37,142.12,142.1,24.629]
[1720030537901,1.40961668,142.13,142.1,24.629]
[1720030538073,13.37,142.12,142.1,24.629]
[1720030539604,14.77961668,142.13,142.1,24.629]
[1720030540688,13.37,142.12,142.1,24.629]
[1720030542880,1.40961668,142.11,142.07,17.5958]
[1720030543193,1.40961668,142.11,142.01,121.22]
[1720030543194,13.37,142.08,142.04,17.5997]
[1720030543394,13.37,142.08,142.05,7.0394]
[1720030543903,13.37,142.08,142.06,7.0391]
[1720030544795,13.37,142.08,142.07,7.0387]
[1720030544985,13.37,142.09,142.07,7.0387]
[1720030545691,14.77961668,142.1,142.07,7.0387]
[1720030546481,13.37,142.09,142.07,7.0387]
[1720030547588,13.37,142.09,142.06,24.637]
[1720030547804,14.77961668,142.09,142.06,24.637]
[1720030548012,13.37,142.09,142.06,24.637]
[1720030548587,13.37,142.09,142.07,7.0386]
[1720030551695,13.37,142.09,142.06,17.598]
[1720030552026,1.40961668,142.08,142.03,17.6013]
[1720030552192,13.37,142.05,142.02,36.0294]
[1720030552392,14.77961668,142.05,142.02,7.0411]
[1720030552712,14.77961668,142.04,142.01,7.0416]
[1720030553024,13.37,142.02,142.0,24.6465]
[1720030553992,13.37,142.03,142.01,7.0417]
[1720030555833,13.37,142.03,142.02,7.0412]
[1720030555993,13.37,142.03,142.0,17.6044]
[1720030556322,13.37,142.01,141.97,24.6519]
[1720030556499,13.37,142.03,141.97,24.6519]
[1720030556500,13.37,141.98,141.97,24.6519]
[1720030557098,13.37,141.99,141.97,24.6519]
[1720030557314,13.37,141.99,141.97,17.6083]
[1720030557501,13.37,141.98,141.97,24.652]
[1720030557696,1.40961668,142.02,141.97,24.652]
[1720030557900,13.37,141.99,141.97,24.652]
[1720030558906,13.37,141.99,141.98,7.0432]
[1720030559218,13.37,142.0,141.98,7.0432]
[1720030559614,13.37,142.01,141.99,17.6065]
[1720030560318,1.40961668,142.02,142.0,7.0419]
[1720030560519,13.37,142.02,142.0,7.0419]
[1720030561228,13.37,142.02,141.99,24.649]
[1720030561418,13.37,142.01,141.99,24.649]
[1720030562803,13.37,142.0,141.97,0.17]
[1720030563121,13.37,141.99,141.97,7.0436]
[1720030563506,1.40961668,142.0,141.97,7.0436]
[1720030563708,13.37,141.98,141.97,7.0436]
[1720030564727,14.77961668,142.0,141.98,7.043]
[1720030565029,13.37,142.0,141.98,7.043]
[1720030565730,1.40961668,142.01,141.98,17.6079]
[1720030565731,13.37,142.01,141.98,17.6079]
[1720030565912,13.37,142.01,141.99,0.17]
[1720030566119,13.37,142.01,142.0,7.0422]
[1720030566422,13.37,142.01,141.99,7.0424]
[1720030566621,113.6687,142.1,141.98,24.651]
[1720030566622,13.37,142.0,141.98,24.651]
[1720030567201,13.37,142.0,141.99,7.0427]
[1720030567403,7.0409,142.03,141.99,7.0427]
[1720030567718,13.37,142.01,141.99,7.0427]
[1720030568620,1.40961668,142.02,142.0,7.0422]
[1720030568811,13.37,142.02,142.0,7.0422]
[1720030569330,13.37,142.02,141.99,7.0425]
[1720030569504,13.37,142.0,141.98,17.6079]
[1720030569827,13.37,141.99,141.98,24.6511]
[1720030570002,13.37,141.99,141.98,17.6079]
[1720030570203,13.37,141.99,141.98,24.6511]
[1720030570403,1.40961668,142.01,141.99,7.0426]
[1720030570616,13.37,142.0,141.99,7.0426]
[1720030571003,13.37,142.01,141.99,7.0426]
[1720030571726,13.37,142.01,141.98,24.6509]
[1720030572225,14.77961668,142.01,141.98,24.6509]
[1720030572520,13.37,141.99,141.97,0.17]
[1720030572724,13.37,141.99,141.96,7.3838]
[1720030572903,13.37,141.99,141.97,7.0436]
[1720030573504,13.37,141.99,141.97,24.6525]
[1720030573804,13.37,141.99,141.98,7.0432]
[1720030574322,13.37,141.99,141.98,7.2132]
[1720030574522,1.40961668,142.01,141.98,7.2132]
[1720030574718,13.37,142.0,141.98,7.2132]
[1720030575224,14.77961668,141.99,141.96,7.0442]
[1720030575422,1.40961668,141.98,141.94,17.6121]
[1720030575633,13.37,141.96,141.94,24.6568]
[1720030576023,13.37,141.96,141.95,7.0447]
[1720030576718,13.37,141.96,141.95,7.2147]
[1720030577525,13.37,141.97,141.96,7.0439]
[1720030577823,14.77961668,141.98,141.96,7.0439]
[1720030578030,13.37,141.97,141.95,0.17]
[1720030578619,13.37,141.97,141.95,7.2146]
[1720030578808,13.37,141.97,141.96,7.0442]
[1720030579503,14.77961668,141.98,141.96,7.0442]
[1720030579925,13.37,141.98,141.95,7.2145]
[1720030580108,13.37,141.98,141.96,7.0442]
[1720030580306,13.37,141.98,141.95,7.2145]
[1720030580529,13.37,141.97,141.91,32.7973]
[1720030580736,14.77961668,141.96,141.93,7.0454]
[1720030582614,14.77961668,141.96,141.94,7.0452]
[1720030582929,13.37,141.97,141.95,0.17]
[1720030583121,13.37,141.97,141.92,13.71]
[1720030583441,13.37,141.97,141.95,17.6116]
[1720030583931,13.37,141.97,141.91,50.4128]
[1720030583932,7.0448,141.95,141.91,7.0466]
[1720030584139,13.37,141.92,141.9,7.047]
[1720030585144,13.37,141.92,141.91,7.0467]
[1720030585638,13.37,141.92,141.91,24.6634]
[1720030585834,1.40961668,141.95,141.93,7.0453]
[1720030586032,13.37,141.95,141.93,7.0453]
[1720030588930,13.37,141.94,141.92,7.0461]
[1720030590023,7.0438,141.97,141.93,7.0457]
[1720030590233,13.37,141.94,141.92,7.046]
[1720030590740,20.4153,141.94,141.91,0.17]
[1720030590923,14.77961668,141.93,141.9,7.047]
[1720030591642,13.37,141.91,141.89,7.2176]
[1720030592955,1.40961668,141.92,141.89,7.2176]
[1720030593253,13.37,141.92,141.9,7.0471]
[1720030593539,13.37,141.92,141.9,7.047]
[1720030593917,13.37,141.92,141.91,7.0467]
[1720030594120,1.40961668,141.95,141.92,7.0459]
[1720030594347,13.37,141.94,141.92,7.0459]
[1720030594641,13.37,141.93,141.91,17.7867]
[1720030594848,1.40961668,141.93,141.91,17.7867]
[1720030595029,13.37,141.92,141.91,17.7867]
[1720030595340,13.37,141.92,141.88,17.7892]
[1720030595546,13.37,141.91,141.89,7.2174]
[1720030595718,13.37,141.91,141.89,7.0474]
[1720030595926,13.37,141.9,141.89,7.0474]
[1720030596232,13.37,141.9,141.89,0.17]
[1720030596832,13.37,141.9,141.88,24.6673]
[1720030597643,13.37,141.9,141.89,7.0477]
[1720030598056,7.0459,141.93,141.89,7.0477]
[1720030598239,1.40961668,141.92,141.9,7.0471]
[1720030598425,13.37,141.91,141.9,7.0471]
[1720030598630,13.37,141.92,141.91,7.0467]
[1720030598928,13.37,141.92,141.9,7.0471]
[1720030599151,1.40961668,141.93,141.89,24.6656]
[1720030599152,14.77961668,141.91,141.89,24.6656]
[1720030599358,13.37,141.91,141.89,17.618]
[1720030599651,13.37,141.9,141.89,17.618]
[1720030600031,8.45581668,141.92,141.89,17.618]
[1720030600232,13.37,141.9,141.89,17.618]
[1720030601160,13.37,141.9,141.89,24.6657]
[1720030601651,14.77961668,141.91,141.89,24.6657]
[1720030601953,13.37,141.91,141.89,24.6657]
[1720030603559,1.40961668,141.92,141.9,7.0471]
[1720030603857,13.37,141.91,141.9,7.0471]
[1720030605959,1.40961668,141.92,141.91,24.6634]
[1720030606136,13.37,141.93,141.91,17.6167]
[1720030606336,14.77961668,141.93,141.91,17.6167]
[1720030606651,13.37,141.92,141.9,7.0469]
[1720030607737,8.45531668,141.93,141.89,24.6667]
[1720030607955,13.37,141.92,141.89,24.6667]
[1720030610159,1.40961668,141.93,141.9,7.0471]
[1720030610458,13.37,141.93,141.91,7.0466]
[1720030610838,13.37,141.93,141.9,7.047]
[1720030611039,20.4152,141.94,141.9,7.047]
[1720030611242,21.82541668,141.93,141.89,24.6668]
[1720030611440,13.37,141.92,141.89,24.6668]
[1720030614053,13.37,141.92,141.9,7.0471]
[1720030615664,14.77961668,141.93,141.9,7.0471]
[1720030616448,21.82531668,141.93,141.89,24.6667]
[1720030617567,13.37,141.92,141.89,24.6667]
[1720030618388,7.0453,141.94,141.9,7.0472]
[1720030618556,13.37,141.93,141.9,7.0472]
[1720030618866,20.4153,141.94,141.9,7.0472]
[1720030620258,13.37,141.93,141.9,7.0472]
[1720030620469,7.0457,141.93,141.9,7.0472]
[1720030620651,7.0454,141.94,141.9,7.0472]
[1720030620852,20.4154,141.94,141.9,7.0472]
[1720030621052,7.0458,141.93,141.89,24.6667]
[1720030621260,7.0458,141.93,141.9,0.17]
[1720030621668,20.4158,141.93,141.9,0.17]
[1720030623051,13.37,141.91,141.86,24.671]
[1720030623373,13.37,141.89,141.84,29.2269]
[1720030623560,13.37,141.89,141.85,24.6735]
[1720030623561,7.0481,141.89,141.85,24.6735]
[1720030623874,13.37,141.89,141.86,7.0491]
[1720030624061,14.77961668,141.89,141.86,7.0491]
[1720030624662,14.77961668,141.89,141.87,0.17]
[1720030624952,13.37,141.89,141.87,7.2186]
[1720030625451,7.0463,141.92,141.88,7.0482]
[1720030625764,13.37,141.92,141.9,7.0471]
[1720030625964,8.45511668,141.94,141.9,7.0471]
[1720030625965,13.37,141.93,141.9,7.0471]
[1720030626557,1.40961668,141.94,141.91,7.0466]
[1720030626759,8.45461668,141.95,141.91,7.0466]
[1720030626958,13.37,141.94,141.91,7.0466]
[1720030628468,20.4152,141.94,141.9,24.6648]
[1720030628671,20.4157,141.93,141.89,7.2175]
[1720030628872,20.4157,141.93,141.88,24.6686]
[1720030628873,7.0464,141.92,141.88,24.6686]
[1720030629054,13.37,141.92,141.89,7.0476]
[1720030629455,14.77961668,141.92,141.89,7.0476]
[1720030630055,13.37,141.92,141.89,7.0476]
[1720030631369,13.37,141.93,141.9,7.217]
[1720030631772,13.37,141.93,141.91,7.0466]
[1720030633176,13.37,141.93,141.9,7.217]
[1720030633373,13.37,141.93,141.9,0.17]
[1720030633374,21.82531668,141.93,141.9,0.17]
[1720030633558,13.37,141.92,141.9,0.17]
[1720030635080,20.4157,141.93,141.9,0.17]
[1720030635477,20.4157,141.93,141.9,7.2171]
[1720030635860,20.4157,141.93,141.9,0.17]
[1720030636062,20.4157,141.93,141.9,7.2171]
[1720030637367,13.37,141.93,141.9,7.2171]
[1720030637584,1.40961668,141.93,141.9,7.2171]
[1720030637769,14.77961668,141.93,141.9,7.2171]
[1720030639088,1.40961668,141.93,141.9,7.2171]
[1720030639385,14.77961668,141.93,141.9,7.2171]
[1720030640058,13.37,141.91,141.89,24.6655]
[1720030640264,13.37,141.9,141.89,24.6655]
[1720030640578,13.37,141.9,141.89,24.8355]
[1720030640973,13.37,141.91,141.89,24.8355]
[1720030641176,14.77961668,141.92,141.9,7.0472]
[1720030641363,13.37,141.92,141.9,7.0472]
[1720030641762,8.45431668,141.95,141.91,7.0467]
[1720030642182,13.37,141.93,141.91,7.0467]
[1720030643686,13.37,141.93,141.9,7.0471]
[1720030643878,7.0452,141.94,141.9,7.0471]
[1720030644183,13.37,141.92,141.9,7.0471]
[1720030644489,7.0452,141.94,141.9,7.0471]
[1720030645068,1.40961668,141.93,141.9,7.0471]
[1720030647087,8.45541668,141.93,141.89,24.8354]
[1720030647289,7.0458,141.93,141.9,0.17]
[1720030647663,1.40961668,141.92,141.86,13.37]
[1720030647868,13.37,141.9,141.87,7.0486]
[1720030648287,13.37,141.9,141.88,7.0481]
[1720030649491,13.37,141.9,141.87,7.2186]
[1720030649785,8.45741668,141.89,141.86,17.6226]
[1720030649999,13.37,141.87,141.83,17.6258]
[1720030650287,13.37,141.87,141.8,21.7097]
[1720030650288,1.40961668,141.86,141.82,24.6784]
[1720030650482,13.37,141.84,141.83,7.0506]
[1720030651082,13.37,141.85,141.83,7.0506]
[1720030651274,1.40961668,141.86,141.83,7.0506]
[1720030651275,13.37,141.84,141.83,7.0506]
[1720030651475,13.37,141.85,141.84,7.0501]
[1720030651871,14.77961668,141.86,141.84,7.0501]
[1720030652267,13.37,141.86,141.84,24.6755]
[1720030652521,1.40961668,141.88,141.85,7.0497]
[1720030652679,13.37,141.87,141.85,7.0497]
[1720030652879,13.37,141.87,141.84,24.6754]
[1720030653599,13.37,141.86,141.84,24.6754]
[1720030653798,13.37,141.86,141.85,7.0497]
[1720030654295,1.40961668,141.88,141.85,7.0497]
[1720030654506,13.37,141.86,141.85,7.0497]
[1720030655200,13.37,141.86,141.84,24.6754]
[1720030655576,13.37,141.86,141.84,17.6254]
[1720030656097,13.37,141.85,141.84,17.6254]
[1720030656301,13.37,141.85,141.84,17.7954]
[1720030657202,1.40961668,141.87,141.84,24.8455]
[1720030657506,13.37,141.86,141.84,24.8455]
[1720030658491,1.40961668,141.87,141.84,24.8455]
[1720030658708,7.0483,141.88,141.84,24.8455]
[1720030658893,20.4183,141.88,141.84,24.8455]
[1720030659287,1.40961668,141.87,141.84,24.8455]
[1720030659482,8.45841668,141.87,141.84,0.17]
[1720030659911,21.82841668,141.87,141.84,0.17]
[1720030660118,20.4188,141.87,141.84,0.17]
[1720030660484,7.0488,141.87,141.84,0.17]
[1720030660687,20.4188,141.87,141.84,7.2201]
[1720030660888,7.0488,141.87,141.84,7.2201]
[1720030661197,1.40961668,141.87,141.84,7.2201]
[1720030661705,21.82781668,141.88,141.84,7.2201]
[1720030662598,20.4182,141.88,141.84,7.2201]
[1720030663310,1.40961668,141.87,141.84,7.2201]
[1720030663612,8.45831668,141.87,141.84,0.17]
[1720030664321,7.0495,141.86,141.82,24.6777]
[1720030664500,21.82911668,141.86,141.83,0.17]
[1720030664699,21.82911668,141.86,141.82,24.6777]
[1720030664906,8.45911668,141.86,141.82,24.6777]
[1720030665109,20.4195,141.86,141.82,24.6777]
[1720030668210,20.4195,141.86,141.83,7.0506]
[1720030668517,13.37,141.86,141.83,7.0506]
[1720030668710,14.77961668,141.86,141.83,7.0506]
[1720030670815,14.77961668,141.85,141.82,24.6777]
[1720030671019,21.82931668,141.85,141.82,24.6777]
[1720030671217,20.4197,141.85,141.82,24.6777]
[1720030671421,13.37,141.85,141.82,24.6777]
[1720030671597,14.77961668,141.85,141.82,24.6777]
[1720030672413,13.37,141.83,141.78,20.4195]
[1720030672616,13.37,141.8,141.77,17.6341]
[1720030672810,13.37,141.79,141.77,17.6341]
[1720030673540,13.37,141.79,141.77,24.6877]
[1720030673824,13.37,141.79,141.77,17.6341]
[1720030674520,13.37,141.79,141.77,24.6877]
[1720030674708,14.77961668,141.8,141.77,24.6877]
[1720030674909,1.40961668,141.8,141.77,24.6877]
[1720030675127,14.77961668,141.8,141.77,24.6877]
[1720030675348,14.77961668,141.8,141.78,7.0531]
[1720030675501,7.0507,141.83,141.79,24.6842]
[1720030675705,1.40961668,141.82,141.8,7.0521]
[1720030676628,8.45931668,141.85,141.81,24.6806]
[1720030676809,21.82931668,141.85,141.81,24.6806]
[1720030677011,14.77961668,141.85,141.82,7.051]
[1720030677517,21.82931668,141.85,141.82,7.051]
[1720030677813,21.82931668,141.85,141.81,24.6804]
[1720030679614,1.40961668,141.86,141.81,17.629]
[1720030679814,1.40961668,141.89,141.82,13.54]
[1720030680028,7.05,141.85,141.81,38.0502]
[1720030680219,8.45981668,141.84,141.8,7.392]
[1720030680422,20.4202,141.84,141.8,20.762]
[1720030680620,20.4202,141.84,141.8,7.392]
[1720030681712,7.0517,141.81,141.78,24.6846]
[1720030681917,8.46131668,141.81,141.78,17.6317]
[1720030682235,1.40961668,141.81,141.78,24.6848]
[1720030683308,1.40961668,141.81,141.79,7.0525]
[1720030683729,14.77961668,141.82,141.79,7.0525]
[1720030683910,1.40961668,141.82,141.79,7.0525]
[1720030684529,1.40961668,141.82,141.78,31.0017]
[1720030684530,7.0517,141.81,141.78,31.0017]
[1720030684739,14.77961668,141.82,141.78,17.6317]
[1720030685036,21.83091668,141.82,141.78,24.6845]
[1720030685235,7.052,141.81,141.77,0.17]
[1720030685416,1.40961668,141.8,141.77,20.4233]
[1720030685626,1.40961668,141.8,141.77,7.0533]
[1720030686521,1.40961668,141.8,141.78,7.0531]
[1720030686731,14.77961668,141.8,141.77,7.0535]
[1720030686937,1.40961668,141.79,141.77,7.0535]
[1720030687142,1.40961668,141.79,141.73,17.638]
[1720030687320,14.77961668,141.78,141.73,31.008]
[1720030687638,8.46341668,141.77,141.73,24.6932]
[1720030687838,1.40961668,141.8,141.75,17.6361]
[1720030688135,14.77961668,141.79,141.75,38.0606]
[1720030688336,21.83231668,141.79,141.75,24.6906]
[1720030688928,1.40961668,141.78,141.75,24.6906]
[1720030689130,14.77961668,141.78,141.75,24.6906]
[1720030690625,13.37,141.73,141.7,7.057]
[1720030690832,14.77961668,141.72,141.69,17.6435]
[1720030691030,14.77961668,141.71,141.67,7.0586]
[1720030691339,13.37,141.72,141.69,7.0573]
[1720030691727,14.77961668,141.73,141.7,7.0571]
[1720030691928,14.77961668,141.73,141.71,7.0566]
[1720030692327,14.77961668,141.73,141.7,7.057]
[1720030692639,14.77961668,141.73,141.71,7.0566]
[1720030692844,1.40961668,141.73,141.71,7.0566]
[1720030693049,14.77961668,141.74,141.69,31.014]
[1720030693229,14.77961668,141.73,141.69,17.644]
[1720030693830,21.83531668,141.73,141.69,24.7013]
[1720030694031,14.77961668,141.73,141.7,7.0571]
[1720030694326,1.40961668,141.73,141.7,7.0571]
[1720030695630,8.46531668,141.73,141.69,38.0715]
[1720030696043,21.83531668,141.73,141.69,24.7015]
[1720030696230,1.40961668,141.72,141.69,24.7015]
[1720030696427,7.0568,141.71,141.67,7.0585]
[1720030696633,1.40961668,141.7,141.67,7.0585]
[1720030696829,7.0563,141.72,141.68,7.058]
[1720030697131,20.4258,141.73,141.69,7.0576]
[1720030697338,21.83541668,141.73,141.69,7.0576]
[1720030697755,7.0561,141.72,141.68,38.0732]
[1720030697930,1.40961668,141.71,141.68,24.7032]
[1720030699047,1.40961668,141.71,141.68,38.0732]
[1720030700249,1.40961668,141.71,141.68,24.7032]
[1720030701831,1.40961668,141.74,141.68,17.6453]
[1720030702032,68.828,141.75,141.68,24.7031]
[1720030702033,7.0561,141.72,141.68,24.7031]
[1720030702244,8.46621668,141.71,141.68,24.7031]
[1720030702448,1.40961668,141.7,141.68,24.7031]
[1720030703461,7.0566,141.71,141.68,24.7031]
[1720030703929,7.0563,141.72,141.68,24.7031]
[1720030704128,1.40961668,141.71,141.68,24.7031]
[1720030705071,1.40961668,141.7,141.68,17.6453]
[1720030705552,1.40961668,141.7,141.66,0.8488404]
[1720030705742,7.0578,141.69,141.66,0.8488404]
[1720030705942,1.40961668,141.68,141.66,0.8488404]
[1720030706257,1.40961668,141.68,141.66,7.9078404]
[1720030706449,1.40961668,141.69,141.66,7.9078404]
[1720030706652,20.4273,141.7,141.66,7.9078404]
[1720030706653,1.40961668,141.72,141.67,17.6462]
[1720030706857,8.46601668,141.72,141.68,7.058]
[1720030707050,21.83601668,141.72,141.68,7.058]
[1720030707766,1.40961668,141.71,141.68,7.058]
[1720030708769,1.40961668,141.74,141.7,13.37]
[1720030708941,8.46331668,141.77,141.73,38.0645]
[1720030709662,7.0542,141.76,141.73,31.0091]
[1720030710538,16.6646,141.78,141.73,31.0091]
[1720030710750,7.0532,141.78,141.74,7.2248]
[1720030710944,8.46241668,141.79,141.75,20.4245]
[1720030711553,7.0532,141.78,141.75,13.37]
[1720030713069,14.77961668,141.79,141.74,0.17]
[1720030713240,1.40961668,141.78,141.74,13.54]
[1720030713442,7.0532,141.78,141.75,13.37]
[1720030714670,8.46221668,141.8,141.76,7.0541]
[1720030714871,7.052,141.81,141.78,13.37]
[1720030715672,7.0522,141.8,141.78,13.37]
[1720030715850,7.0522,141.8,141.77,13.54]
[1720030716166,14.77961668,141.82,141.77,0.17]
[1720030716167,32.40781668,141.82,141.77,0.17]
[1720030716374,7.0536,141.77,141.72,32.662]
[1720030716575,7.0536,141.77,141.74,13.37]
[1720030716775,8.46291668,141.78,141.74,13.37]
[1720030717073,7.0528,141.79,141.75,13.37]
[1720030717259,7.0528,141.79,141.75,20.4246]
[1720030717584,7.0528,141.79,141.76,13.37]
[1720030717887,1.40961668,141.81,141.76,17.635]
[1720030718047,14.77961668,141.83,141.78,13.37]
[1720030718251,6.4823,141.84,141.77,13.54]
[1720030718252,14.77961668,141.82,141.77,13.54]
[1720030718466,1.40961668,141.82,141.77,13.54]
[1720030718670,1.40961668,141.82,141.78,13.37]
[1720030719079,7.052,141.81,141.78,13.37]
[1720030720255,7.052,141.81,141.78,20.4231]
[1720030720457,7.0513,141.82,141.79,13.37]
[1720030721475,7.0513,141.82,141.8,13.54]
[1720030721985,7.0516,141.81,141.8,0.17]
[1720030722479,7.0517,141.81,141.79,13.37]
[1720030722680,7.0512,141.82,141.79,13.37]
[1720030724082,8.46081668,141.82,141.79,13.37]
[1720030724386,1.40961668,141.82,141.79,13.37]
[1720030724561,7.0518,141.81,141.78,13.37]
[1720030724982,7.0522,141.8,141.77,0.34]
[1720030725162,7.0522,141.8,141.77,13.54]
[1720030726356,1.40961668,141.79,141.76,17.635]
[1720030726556,7.0525,141.8,141.76,24.689]
[1720030726757,8.46241668,141.79,141.76,17.635]
[1720030726961,8.46241668,141.79,141.76,31.005]
[1720030727689,7.0528,141.79,141.76,31.005]
[1720030727893,8.46191668,141.8,141.76,38.059]
[1720030728189,1.40961668,141.79,141.77,7.0536]
[1720030728780,8.46241668,141.79,141.73,17.638]
[1720030728965,20.4234,141.78,141.74,7.0547]
[1720030729168,1.40961668,141.77,141.74,7.0547]
[1720030729475,1.40961668,141.77,141.74,20.4247]
[1720030729779,1.40961668,141.77,141.73,17.638]
[1720030729971,1.40961668,141.78,141.74,13.37]
[1720030730174,8.46291668,141.78,141.74,20.4248]
[1720030730790,8.46291668,141.78,141.75,7.0546]
[1720030731368,1.40961668,141.78,141.75,7.0546]
[1720030732175,7.0539,141.77,141.73,24.8633]
[1720030732484,1.40961668,141.76,141.73,38.0633]
[1720030732879,1.40961668,141.76,141.73,24.6933]
[1720030733093,1.40961668,141.76,141.73,38.0633]
[1720030733480,1.40961668,141.76,141.73,24.6933]
[1720030733683,1.40961668,141.76,141.74,7.0551]
[1720030733894,8.46391668,141.76,141.73,17.638]
[1720030734088,13.37,141.74,141.71,7.0564]
[1720030734393,1.40961668,141.73,141.7,24.6991]
[1720030734898,1.40961668,141.73,141.71,7.0565]
[1720030735801,1.40961668,141.73,141.72,7.0561]
[1720030736000,1.40961668,141.74,141.72,7.0561]
[1720030736300,1.40961668,141.73,141.72,7.0561]
[1720030737201,1.40961668,141.74,141.72,7.0561]
[1720030737699,1.40961668,141.73,141.71,7.0565]
[1720030738382,1.40961668,141.74,141.72,7.056]
[1720030739205,1.40961668,141.74,141.71,7.0564]
[1720030739702,14.77961668,141.74,141.71,7.0564]
[1720030740197,1.40961668,141.73,141.71,7.0564]
[1720030740403,13.37,141.72,141.67,17.6454]
[1720030740609,1.40961668,141.71,141.68,7.0577]
[1720030740785,14.77961668,141.71,141.68,7.0577]
[1720030740979,1.40961668,141.7,141.68,7.0577]
[1720030741393,1.40961668,141.71,141.69,7.0574]
[1720030741604,1.40961668,141.73,141.7,7.0568]
[1720030741991,8.46531668,141.73,141.69,24.7009]
[1720030742190,1.40961668,141.73,141.66,0.8488404]
[1720030742408,1.40961668,141.73,141.66,25.5543404]
[1720030742584,1.40961668,141.73,141.67,7.0586]
[1720030742791,7.0569,141.71,141.67,7.0586]
[1720030743105,1.40961668,141.7,141.67,7.0586]
[1720030743289,8.46681668,141.7,141.66,25.5543404]
[1720030743491,1.40961668,141.69,141.66,25.5543404]
[1720030745000,1.40961668,141.69,141.67,7.0586]
[1720030745213,1.40961668,141.7,141.67,7.0586]
[1720030745694,7.0562,141.72,141.68,7.058]
[1720030745896,7.0566,141.71,141.67,7.0585]
[1720030746105,17.6392,141.73,141.66,18.4954404]
[1720030746320,17.6392,141.73,141.66,25.5545404]
[1720030746905,6.0318,141.72,141.66,18.4954404]
[1720030747098,7.0586,141.67,141.66,0.8488404]
[1720030748292,51.081,141.67,141.58,7.0628]
[1720030748605,7.0614,141.62,141.58,7.0628]
[1720030748785,7.0617,141.61,141.53,15.4195]